bitfinex-derivatives/quotes_BTCF0:USTF0_20250720
["timestamp","ask_amount","ask_price","bid_price","bid_amount"]
[1752979569575,0.89421975,118010.0,118000.0,0.74249283]
[1752979569878,1.04043882,118010.0,118000.0,0.74249283]
[1752979570270,1.04043882,118010.0,118000.0,0.6143698]
[1752979570271,1.02234278,118010.0,118000.0,0.6143698]
[1752979570478,1.02234278,118010.0,118000.0,0.74249283]
[1752979571076,1.02234278,118010.0,118000.0,0.6143698]
[1752979571281,1.02234278,118010.0,118000.0,0.74249283]
[1752979572081,1.02234278,118010.0,118000.0,0.38169283]
[1752979572274,1.02234278,118010.0,118000.0,0.74249283]
[1752979573282,0.89421975,118010.0,118000.0,0.74249283]
[1752979573482,1.02234278,118010.0,118000.0,0.74249283]
[1752979576684,1.04043829,118010.0,118000.0,0.74249283]
[1752979576879,1.04043829,118010.0,118000.0,0.38169283]
[1752979577084,1.02234278,118010.0,118000.0,0.74249283]
[1752979577383,1.04043945,118010.0,118000.0,0.74249283]
[1752979577984,1.04043945,118010.0,118000.0,0.38169283]
[1752979578186,1.04043945,118010.0,118000.0,0.74249283]
[1752979579290,1.02234278,118010.0,118000.0,0.74249283]
[1752979579989,1.0404444,118010.0,118000.0,0.74249283]
[1752979580587,1.04044758,118010.0,118000.0,0.74249283]
[1752979580991,0.99810078,118010.0,118000.0,1.10249283]
[1752979581192,0.99810078,118010.0,118000.0,1.09249283]
[1752979581385,0.82870528,118010.0,118000.0,1.06249283]
[1752979581787,0.82870528,118010.0,118000.0,1.19061586]
[1752979581987,0.99809068,118010.0,118000.0,1.19061586]
[1752979582188,0.11574225,118010.0,118000.0,1.19061586]
[1752979582490,0.60343745,118010.0,118000.0,1.19061586]
[1752979583490,0.62154984,118010.0,118000.0,1.19061586]
[1752979583789,0.60343745,118010.0,118000.0,1.19061586]
[1752979584291,0.60343745,118010.0,118000.0,1.77509586]
[1752979584487,0.60243745,118010.0,118000.0,1.77609586]
[1752979584886,0.62055377,118010.0,118000.0,1.77609586]
[1752979585192,0.60259632,118010.0,118000.0,1.77709586]
[1752979585692,0.60259632,118010.0,118000.0,1.5208498]
[1752979585891,0.60259632,118010.0,118000.0,1.77709586]
[1752979586384,0.01811632,118010.0,118000.0,1.77709586]
[1752979586590,0.03397632,118010.0,118000.0,1.8456425]
[1752979587690,0.05675632,118010.0,118000.0,1.8456425]
[1752979588090,0.03397632,118010.0,118000.0,1.8456425]
[1752979591492,0.20336172,118010.0,118000.0,1.8456425]
[1752979591789,0.37074475,118010.0,118000.0,1.71751947]
[1752979591989,0.39421475,118010.0,118000.0,1.71751947]
[1752979593195,0.39421475,118010.0,118000.0,1.00491644]
[1752979593493,0.39421475,118010.0,118000.0,1.71739947]
[1752979595193,0.39421475,118010.0,118000.0,1.13303947]
[1752979597695,0.26609172,118010.0,118000.0,1.13303947]
[1752979597888,0.39421475,118010.0,118000.0,1.13303947]
[1752979598085,0.42152608,118030.0,118020.0,0.1693711]
[1752979598086,0.02347,118030.0,118020.0,0.1693711]
[1752979598286,0.2352057,118050.0,118040.0,0.06399]
[1752979598491,0.02182733,118060.0,118050.0,0.169328]
[1752979598686,0.04485733,118060.0,118050.0,0.74305103]
[1752979598890,0.04485733,118060.0,118050.0,0.984928]
[1752979599091,0.60140733,118060.0,118050.0,1.15540382]
[1752979599295,0.60140733,118060.0,118050.0,1.13540382]
[1752979599797,0.60140733,118060.0,118050.0,0.7947162]
[1752979600000,0.01712733,118060.0,118050.0,0.9547162]
[1752979600196,0.60232733,118060.0,118050.0,1.1247162]
[1752979600493,0.01812733,118060.0,118050.0,1.1147162]
[1752979600898,0.02212733,118060.0,118050.0,1.1147162]
[1752979601100,0.02212733,118060.0,118050.0,1.1547162]
[1752979601300,0.01812733,118060.0,118050.0,1.1547162]
[1752979601600,0.02012733,118060.0,118050.0,1.1547162]
[1752979602098,0.02012733,118060.0,118050.0,0.7947162]
[1752979602495,0.18944103,118060.0,118050.0,0.7947162]
[1752979602697,0.22187103,118060.0,118050.0,0.26344038]
[1752979602898,0.23495103,118060.0,118050.0,0.26344038]
[1752979603102,0.77178685,118060.0,118050.0,0.26344038]
[1752979603400,0.41098685,118060.0,118050.0,0.26344038]
[1752979603600,0.41098685,118060.0,118050.0,0.254128]
[1752979605601,0.41098685,118060.0,118050.0,0.26333985]
[1752979607194,0.24051103,118060.0,118050.0,0.26333985]
[1752979607398,0.23495103,118060.0,118050.0,0.26333985]
[1752979608102,0.22187103,118060.0,118050.0,0.26333985]
[1752979608406,0.77352103,118060.0,118050.0,0.80381567]
[1752979608801,0.60420733,118060.0,118050.0,0.80381567]
[1752979609000,0.02012733,118060.0,118050.0,1.16461567]
[1752979609202,0.60416733,118060.0,118050.0,1.16461567]
[1752979609500,0.02012733,118060.0,118050.0,1.16461567]
[1752979615605,0.003,118060.0,118050.0,1.16461567]
[1752979615810,0.5324407,118090.0,118080.0,0.256995]
[1752979616013,0.80360857,118090.0,118080.0,0.78827082]
[1752979616612,0.21964857,118090.0,118080.0,0.617795]
[1752979616805,0.81668857,118090.0,118080.0,0.617795]
[1752979617005,0.82068857,118090.0,118080.0,0.617795]
[1752979617414,0.81668857,118090.0,118080.0,0.617795]
[1752979617612,0.81968857,118090.0,118080.0,0.617795]
[1752979618714,0.82268857,118090.0,118080.0,0.617795]
[1752979619012,0.82268857,118090.0,118080.0,0.68696257]
[1752979619507,0.82168857,118090.0,118080.0,0.68696257]
[1752979623812,0.82168857,118090.0,118080.0,0.71696257]
[1752979624318,0.82724857,118090.0,118080.0,0.71696257]
[1752979626511,0.82724857,118090.0,118080.0,0.71696267]
[1752979626708,0.82724857,118090.0,118080.0,0.35616267]
[1752979627819,0.24328857,118090.0,118080.0,0.35616267]
[1752979628010,0.82708857,118090.0,118080.0,0.35616267]
[1752979628414,0.24328857,118090.0,118080.0,0.35616267]
[1752979628613,0.82152857,118090.0,118080.0,0.35616267]
[1752979629014,0.82152857,118090.0,118080.0,0.52663849]
[1752979629516,0.82152857,118090.0,118080.0,0.35616267]
[1752979635622,0.82708857,118090.0,118080.0,0.35616267]
[1752979638421,0.82152857,118090.0,118080.0,0.35616267]
[1752979638824,0.82708857,118090.0,118080.0,0.35616267]
[1752979640018,0.99756439,118090.0,118080.0,0.35616267]
[1752979641324,0.82708857,118090.0,118080.0,0.35616267]
[1752979643024,1.18788857,118090.0,118080.0,0.35616267]
[1752979643931,1.18788857,118090.0,118080.0,0.16331757]
[1752979644132,1.35836439,118090.0,118080.0,0.16331757]
[1752979644932,1.31573812,118090.0,118080.0,0.16331757]
[1752979645428,1.31573812,118090.0,118080.0,0.17909757]
[1752979645634,1.31573812,118090.0,118080.0,0.31145712]
[1752979646333,1.31573812,118090.0,118080.0,0.31371712]
[1752979647032,1.31573812,118090.0,118080.0,0.48300222]
[1752979650727,0.95493812,118090.0,118080.0,0.48300222]
[1752979650929,1.31573812,118090.0,118080.0,0.48300222]
[1752979651733,0.95493812,118090.0,118080.0,0.48300222]
[1752979653128,0.82708857,118090.0,118080.0,0.45300222]
[1752979653333,0.95493812,118090.0,118080.0,0.45300222]
[1752979653633,1.31573812,118090.0,118080.0,0.45300222]
[1752979653834,0.95493812,118090.0,118080.0,0.45300222]
[1752979655532,0.95493812,118090.0,118080.0,0.32515267]
[1752979655733,0.95493812,118090.0,118080.0,0.45300222]
[1752979658435,0.95461812,118090.0,118080.0,0.32515267]
[1752979658636,0.95461812,118090.0,118080.0,0.45300222]
[1752979658937,0.82676857,118090.0,118080.0,0.45300222]
[1752979659136,0.95461812,118090.0,118080.0,0.45300222]
[1752979660132,0.95461812,118090.0,118080.0,0.47300222]
[1752979665041,0.95461812,118090.0,118080.0,0.34515267]
[1752979665242,0.95461812,118090.0,118080.0,0.47300222]
[1752979665641,0.95461812,118090.0,118080.0,0.34515267]
[1752979666747,0.82676857,118090.0,118080.0,0.34515267]
[1752979666944,0.95461812,118090.0,118080.0,0.34515267]
[1752979669446,0.37113812,118090.0,118080.0,0.34515267]
[1752979669749,0.95449812,118090.0,118080.0,0.34515267]
[1752979670741,0.95449812,118090.0,118080.0,0.47300222]
[1752979671450,0.95449812,118090.0,118080.0,0.34515267]
[1752979671652,0.37113812,118090.0,118080.0,0.34515267]
[1752979671852,0.95449812,118090.0,118080.0,0.47300222]
[1752979672354,0.37113812,118090.0,118080.0,0.47300222]
[1752979672543,0.95449812,118090.0,118080.0,0.47300222]
[1752979673451,1.31529812,118090.0,118080.0,0.47300222]
[1752979674647,0.95449812,118090.0,118080.0,0.47300222]
[1752979674951,1.31529812,118090.0,118080.0,0.47300222]
[1752979675457,0.95449812,118090.0,118080.0,0.47300222]
[1752979676055,0.19974857,118090.0,118080.0,0.58085177]
[1752979676250,0.77851857,118090.0,118080.0,0.91085177]
[1752979677350,0.19519857,118090.0,118080.0,0.91085177]
[1752979677557,0.77610857,118090.0,118080.0,0.91085177]
[1752979678157,0.77601829,118090.0,118080.0,0.91085177]
[1752979679155,0.77601829,118090.0,118080.0,1.27165177]
[1752979680854,0.19273829,118090.0,118080.0,1.27165177]
[1752979681056,0.77597829,118090.0,118080.0,1.27165177]
[1752979684559,0.77597829,118090.0,118080.0,1.01595267]
[1752979684758,0.77587342,118090.0,118080.0,1.27165177]
[1752979688266,0.19263342,118090.0,118080.0,1.27165177]
[1752979688565,0.77575342,118090.0,118080.0,1.27165177]
[1752979689363,0.77575352,118090.0,118080.0,1.27165177]
[1752979689665,0.60648272,118090.0,118080.0,1.27165177]
[1752979689865,0.7573908,118090.0,118080.0,1.27165177]
[1752979690062,0.58812,118090.0,118080.0,1.27165177]
[1752979690361,0.7573908,118090.0,118080.0,1.27165177]
[1752979690561,0.005,118090.0,118080.0,1.39950132]
[1752979690867,0.005,118090.0,118080.0,1.27165177]
[1752979691166,0.005,118090.0,118080.0,1.56335177]
[1752979691664,0.004,118090.0,118080.0,1.56335177]
[1752979692063,0.001,118090.0,118080.0,1.56335177]
[1752979692366,0.1712708,118090.0,118080.0,1.56335177]
[1752979692563,0.1712708,118090.0,118080.0,2.14643177]
[1752979693267,0.002,118090.0,118080.0,2.14643177]
[1752979694360,0.002,118090.0,118080.0,2.14639177]
[1752979694661,0.1712708,118090.0,118080.0,2.14639177]
[1752979695268,0.002,118090.0,118080.0,2.14639177]
[1752979698565,0.38172035,118110.0,118100.0,0.2037165]
[1752979698763,0.98290617,118110.0,118100.0,1.11590605]
[1752979698963,0.98290617,118110.0,118100.0,1.2437556]
[1752979699165,0.98290617,118110.0,118100.0,1.11590605]
[1752979699468,0.98519617,118110.0,118100.0,1.11590605]
[1752979700168,0.22974432,118110.0,118100.0,1.2437556]
[1752979700370,0.81270432,118110.0,118100.0,1.2437556]
[1752979700972,0.81270363,118110.0,118100.0,1.2437556]
[1752979701271,0.81570363,118110.0,118100.0,1.2437556]
[1752979701870,0.81570363,118110.0,118100.0,0.9880565]
[1752979702072,0.94355318,118110.0,118100.0,1.2437556]
[1752979702371,0.81870363,118110.0,118100.0,1.2437556]
[1752979702770,0.82109363,118110.0,118100.0,0.9880565]
[1752979702973,0.82571363,118110.0,118100.0,1.2437556]
[1752979703271,0.97750318,118110.0,118100.0,1.2437556]
[1752979703467,0.97750318,118110.0,118100.0,1.11590605]
[1752979704172,0.84965363,118110.0,118100.0,1.11590605]
[1752979704374,0.97750318,118110.0,118100.0,1.11590605]
[1752979706473,1.35694318,118110.0,118100.0,0.2572564]
[1752979706664,1.35694318,118110.0,118100.0,0.2524264]
[1752979708075,0.99614318,118110.0,118100.0,0.2572664]
[1752979708372,1.35694318,118110.0,118100.0,0.2572664]
[1752979708574,0.99614318,118110.0,118100.0,0.2572664]
[1752979708874,1.35694318,118110.0,118100.0,0.38511595]
[1752979709077,0.99614318,118110.0,118100.0,0.38511595]
[1752979709274,0.99058318,118110.0,118100.0,0.38511595]
[1752979709972,0.97750318,118110.0,118100.0,0.38511595]
[1752979710472,0.97750318,118110.0,118100.0,0.74591595]
[1752979712378,0.97738318,118110.0,118100.0,0.74591595]
[1752979718382,0.39454318,118110.0,118100.0,0.74591595]
[1752979718684,0.97734318,118110.0,118100.0,0.74591595]
[1752979720377,0.97734318,118110.0,118100.0,0.8737655]
[1752979722379,0.39454318,118110.0,118100.0,0.8737655]
[1752979722580,0.97730318,118110.0,118100.0,0.8737655]
[1752979723186,0.84945363,118110.0,118100.0,0.8737655]
[1752979724580,0.84945363,118110.0,118100.0,0.6180664]
[1752979724780,0.84945363,118110.0,118100.0,0.8737655]
[1752979724988,0.84945363,118110.0,118100.0,0.74591595]
[1752979726385,0.97730318,118110.0,118100.0,0.8737655]
[1752979727790,0.97730318,118110.0,118100.0,0.5129655]
[1752979727984,0.97730318,118110.0,118100.0,0.74591595]
[1752979728887,0.97730318,118110.0,118100.0,0.38511595]
[1752979729087,0.97730318,118110.0,118100.0,0.74591595]
[1752979730083,1.00773301,118110.0,118100.0,0.74591595]
[1752979731791,0.99594318,118110.0,118100.0,0.74591595]
[1752979731991,1.48459273,118110.0,118100.0,0.04871]
[1752979732289,1.48459273,118110.0,118100.0,0.02442]
[1752979733485,1.35674318,118110.0,118100.0,0.02442]
[1752979735588,1.35674318,118110.0,118100.0,0.1936764]
[1752979735790,1.35674318,118110.0,118100.0,0.02442]
[1752979737690,1.35674318,118110.0,118100.0,0.048]
[1752979738090,1.35674318,118110.0,118100.0,0.2172565]
[1752979739488,0.99594318,118110.0,118100.0,0.2172565]
[1752979739687,1.35674318,118110.0,118100.0,0.2172565]
[1752979740289,0.86809363,118110.0,118100.0,0.2172565]
[1752979740591,0.99594318,118110.0,118100.0,0.2172565]
[1752979740796,1.35674318,118110.0,118100.0,0.048]
[1752979740991,1.35674318,118110.0,118100.0,0.2172564]
[1752979741194,1.22889363,118110.0,118100.0,0.2172564]
[1752979741490,1.35674318,118110.0,118100.0,0.2172564]
[1752979741692,1.35674318,118110.0,118100.0,0.048]
[1752979741891,1.35674318,118110.0,118100.0,0.2172564]
[1752979744499,0.99594318,118110.0,118100.0,0.2172564]
[1752979745405,1.35674318,118110.0,118100.0,0.2172564]
[1752979747405,1.35674318,118110.0,118100.0,0.048]
[1752979747702,1.35674318,118110.0,118100.0,0.2172564]
[1752979748504,0.99594318,118110.0,118100.0,0.2172564]
[1752979748804,0.99594318,118110.0,118100.0,0.36077595]
[1752979749105,0.99594318,118110.0,118100.0,0.37632595]
[1752979749306,0.99594318,118110.0,118100.0,0.38083595]
[1752979751110,0.99607137,118110.0,118100.0,0.38083595]
[1752979751512,0.99607137,118110.0,118100.0,0.38312595]
[1752979751813,0.41331137,118110.0,118100.0,0.38312595]
[1752979752013,0.99595137,118110.0,118100.0,0.38312595]
[1752979752414,0.26682182,118110.0,118100.0,0.8717755]
[1752979752612,0.84946182,118110.0,118100.0,0.8717755]
[1752979753706,0.97731137,118110.0,118100.0,0.6160764]
[1752979753906,0.99595137,118110.0,118100.0,0.06367]
[1752979754214,0.99595137,118110.0,118100.0,0.048]
[1752979754215,1.35675137,118110.0,118100.0,0.048]
[1752979754816,1.48460092,118110.0,118100.0,0.048]
[1752979755015,0.2197564,118100.0,118090.0,0.339]
[1752979755318,0.49376882,118100.0,118090.0,0.349]
[1752979756022,0.49376882,118100.0,118090.0,0.5182708]
[1752979756318,0.49676882,118100.0,118090.0,0.5182708]
[1752979757721,0.24106972,118100.0,118090.0,0.5182708]
[1752979757924,0.49676882,118100.0,118090.0,0.5182708]
[1752979758221,0.49676882,118100.0,118090.0,0.349]
[1752979759119,0.49676882,118100.0,118090.0,0.2265708]
[1752979760018,0.49676882,118100.0,118090.0,0.0573]
[1752979760523,0.49676882,118100.0,118090.0,0.2265708]
[1752979760724,0.49676882,118100.0,118090.0,0.0573]
[1752979763227,0.85756882,118100.0,118090.0,0.0573]
[1752979763618,0.85756882,118100.0,118090.0,0.02372]
[1752979764419,0.85756882,118100.0,118090.0,0.0465]
[1752979767328,0.85756882,118100.0,118090.0,0.078]
[1752979767521,0.85756882,118100.0,118090.0,0.0826]
[1752979767828,0.85756882,118100.0,118090.0,0.078]
[1752979768330,0.85756882,118100.0,118090.0,0.06188]
[1752979769029,0.85756882,118100.0,118090.0,0.0465]
[1752979772030,0.49676882,118100.0,118090.0,0.0465]
[1752979772233,0.85756882,118100.0,118090.0,0.0465]
[1752979773826,0.60186972,118100.0,118090.0,0.0465]
[1752979774032,0.85756882,118100.0,118090.0,0.0465]
[1752979774725,0.49676882,118100.0,118090.0,0.0465]
[1752979774928,0.85756882,118100.0,118090.0,0.0465]
[1752979775232,0.2207708,118090.0,118080.0,0.24327712]
[1752979775426,0.94953367,118090.0,118080.0,0.56327712]
[1752979777431,0.95053367,118090.0,118080.0,0.56327712]
[1752979778029,0.95053367,118090.0,118080.0,0.73256222]
[1752979778431,0.95053367,118090.0,118080.0,0.76406222]
[1752979778733,0.95053367,118090.0,118080.0,0.77095222]
[1752979782638,1.31133367,118090.0,118080.0,0.36626]
[1752979783538,1.18348412,118090.0,118080.0,0.66339465]
[1752979783732,1.31133367,118090.0,118080.0,0.66339465]
[1752979784041,1.31133367,118090.0,118080.0,0.69489465]
[1752979784240,1.31133367,118090.0,118080.0,0.69949465]
[1752979784537,1.31133367,118090.0,118080.0,0.5716451]
[1752979785140,1.31133367,118090.0,118080.0,0.40236]
[1752979785939,1.31133367,118090.0,118080.0,0.53020955]
[1752979786534,1.31133367,118090.0,118080.0,0.52560955]
[1752979786829,1.31133367,118090.0,118080.0,0.39776]
[1752979789144,1.32867207,118090.0,118080.0,0.39776]
[1752979790345,1.20082252,118090.0,118080.0,0.39776]
[1752979790545,1.32867207,118090.0,118080.0,0.39776]
[1752979791546,1.32867207,118090.0,118080.0,0.38164]
[1752979792641,1.32867207,118090.0,118080.0,0.32]
[1752979792847,0.2189351,118080.0,118070.0,0.04636]
[1752979793147,0.85374752,118080.0,118070.0,0.21636]
[1752979793545,0.85374752,118080.0,118070.0,0.25513]
[1752979794646,0.59804842,118080.0,118070.0,0.25613]
[1752979794846,0.85374752,118080.0,118070.0,0.38397955]
[1752979796248,0.59804842,118080.0,118070.0,0.38397955]
[1752979796450,0.85374752,118080.0,118070.0,0.38397955]
[1752979796748,0.85374752,118080.0,118070.0,0.25613]
[1752979799648,1.43626752,118080.0,118070.0,0.25613]
[1752979800242,1.18056842,118080.0,118070.0,0.25613]
[1752979800444,1.43626752,118080.0,118070.0,0.25613]
[1752979800644,1.43726752,118080.0,118070.0,0.25613]
[1752979800946,1.43726752,118080.0,118070.0,0.25513]
[1752979806856,1.43722616,118080.0,118070.0,0.25513]
[1752979808355,0.85470616,118080.0,118070.0,0.25513]
[1752979808657,0.92993661,118080.0,118070.0,0.55227905]
[1752979809752,0.92893661,118080.0,118070.0,0.55227905]
[1752979810758,0.92893661,118080.0,118070.0,0.55327905]
[1752979810952,0.94201661,118080.0,118070.0,0.55327905]
[1752979811552,1.06986616,118080.0,118070.0,0.38397955]
[1752979813254,1.07542616,118080.0,118070.0,0.38397955]
[1752979814158,1.07542616,118080.0,118070.0,0.55327905]
[1752979816661,1.07542616,118080.0,118070.0,0.25613]
[1752979817361,1.43622616,118080.0,118070.0,0.25613]
[1752979817564,1.43622616,118080.0,118070.0,0.25129]
[1752979817758,1.43622616,118080.0,118070.0,0.41129]
[1752979820562,1.43622616,118080.0,118070.0,0.41614]
[1752979820866,1.18052706,118080.0,118070.0,0.41614]
[1752979821067,1.43622616,118080.0,118070.0,0.41614]
[1752979824268,0.85370616,118080.0,118070.0,0.41614]
[1752979824470,1.43614616,118080.0,118070.0,0.41614]
[1752979827772,0.85370616,118080.0,118070.0,0.41614]
[1752979827973,1.43614616,118080.0,118070.0,0.41614]
[1752979829568,1.43614616,118080.0,118070.0,0.41129]
[1752979829774,1.43614616,118080.0,118070.0,0.13129]
[1752979830774,0.85370616,118080.0,118070.0,0.13129]
[1752979830976,1.43610616,118080.0,118070.0,0.13129]
[1752979831370,1.43610616,118080.0,118070.0,0.13029]
[1752979831570,1.43610616,118080.0,118070.0,0.13514]
[1752979832073,1.43615437,118080.0,118070.0,0.13514]
[1752979832775,1.43715437,118080.0,118070.0,0.13514]
[1752979833579,1.18145527,118080.0,118070.0,0.13514]
[1752979833772,1.43715437,118080.0,118070.0,0.13514]
[1752979837985,1.07635437,118080.0,118070.0,0.13514]
[1752979838282,0.85475437,118080.0,118070.0,0.3044394]
[1752979838484,1.43711437,118080.0,118070.0,0.13514]
[1752979839082,1.43711437,118080.0,118070.0,0.3044395]
[1752979839679,1.43711437,118080.0,118070.0,0.13514]
[1752979849896,1.07631437,118080.0,118070.0,0.13514]
[1752979850198,1.43711437,118080.0,118070.0,0.13514]
[1752979850597,1.43711437,118080.0,118070.0,0.13029]
[1752979855598,1.43711437,118080.0,118070.0,0.09636]
[1752979859504,1.43711437,118080.0,118070.0,0.40636]
[1752979862801,1.43711437,118080.0,118070.0,0.02296]
[1752979864006,0.1956994,118070.0,118060.0,0.2629987]
[1752979864206,0.36531912,118070.0,118060.0,0.6561687]
[1752979864607,0.36531912,118070.0,118060.0,0.6883587]
[1752979864805,0.36531912,118070.0,118060.0,0.6932387]
[1752979865607,0.36531912,118070.0,118060.0,0.6942387]
[1752979866206,0.36531912,118070.0,118060.0,0.6966387]
[1752979868208,0.36531912,118070.0,118060.0,0.6966388]
[1752979871611,0.36531912,118070.0,118060.0,0.527325]
[1752979871805,0.36531912,118070.0,118060.0,0.45831]
[1752979875613,0.36535182,118070.0,118060.0,0.45831]
[1752979880917,0.72615182,118070.0,118060.0,0.45831]
[1752979881316,0.70779895,118070.0,118060.0,0.45831]
[1752979881512,0.72615201,118070.0,118060.0,0.45831]
[1752979882219,0.59830246,118070.0,118060.0,0.45831]
[1752979882419,0.72615201,118070.0,118060.0,0.45831]
[1752979883619,0.87106889,118070.0,118060.0,0.04884]
[1752979883824,0.87106889,118070.0,118060.0,0.22884]
[1752979884425,0.87106889,118070.0,118060.0,0.20417]
[1752979884918,0.87106889,118070.0,118060.0,0.22692]
[1752979885727,0.87106889,118070.0,118060.0,0.22592]
[1752979887226,0.87106889,118070.0,118060.0,0.18]
[1752979887626,0.87106889,118070.0,118060.0,0.20344]
[1752979888733,0.87106889,118070.0,118060.0,0.02344]
[1752979890033,0.8710475,118070.0,118060.0,0.02344]
[1752979890233,0.8720475,118070.0,118060.0,0.02344]
[1752979890628,0.2142636,118060.0,118050.0,0.05496489]
[1752979890829,1.43574437,118060.0,118050.0,0.43496489]
[1752979891030,1.43574437,118060.0,118050.0,0.45077489]
[1752979891328,1.43574437,118060.0,118050.0,0.47141489]
[1752979892334,1.43574437,118060.0,118050.0,0.47491489]
[1752979896843,1.07494437,118060.0,118050.0,0.47491489]
[1752979897142,1.43574437,118060.0,118050.0,0.47491489]
[1752979897943,1.07494437,118060.0,118050.0,0.47491489]
[1752979898138,1.43574437,118060.0,118050.0,0.47491489]
[1752979899140,1.43574437,118060.0,118050.0,0.42719]
[1752979899337,1.43574437,118060.0,118050.0,0.18719]
[1752979899538,1.56359392,118060.0,118050.0,0.18719]
[1752979900139,1.43574437,118060.0,118050.0,0.18719]
[1752979900344,1.56359392,118060.0,118050.0,0.18719]
[1752979900945,1.56359392,118060.0,118050.0,0.141]
[1752979901539,1.56359392,118060.0,118050.0,0.16444]
[1752979901743,1.56359392,118060.0,118050.0,0.18719]
[1752979903344,0.2028123,118040.0,118030.0,0.12484102]
[1752979903547,1.0808714,118040.0,118030.0,0.47484102]
[1752979903949,1.0808714,118040.0,118030.0,0.43035197]
[1752979904147,1.45999305,118040.0,118030.0,0.4117]
[1752979904545,1.45999305,118040.0,118030.0,0.4202171]
[1752979904746,1.5878426,118040.0,118030.0,0.02275]
[1752979904945,1.5878426,118040.0,118030.0,0.16675]
[1752979905849,1.5878426,118040.0,118030.0,0.144]
[1752979906050,1.5878426,118040.0,118030.0,0.146]
[1752979906947,1.5878426,118040.0,118020.0,0.03666317]
[1752979906948,0.2385367,118030.0,118020.0,0.04619]
[1752979907152,0.87796745,118030.0,118020.0,0.02275]
[1752979908145,0.62226835,118030.0,118020.0,0.02275]
[1752979908347,0.87796745,118030.0,118020.0,0.04619]
[1752979908547,0.87796745,118030.0,118020.0,0.08264]
[1752979908950,1.46132745,118030.0,118020.0,0.08514]
[1752979909146,1.46132745,118030.0,118020.0,0.08714]
[1752979909948,1.46132745,118030.0,118020.0,0.09114]
[1752979911555,1.46132745,118030.0,118020.0,0.38836055]
[1752979911556,0.9382079,118030.0,118020.0,0.38836055]
[1752979912555,0.9382079,118030.0,118020.0,0.09114]
[1752979912754,0.9616579,118030.0,118020.0,0.09114]
[1752979916259,0.83380835,118030.0,118020.0,0.09114]
[1752979916458,0.9616579,118030.0,118020.0,0.09114]
[1752979919761,0.9747379,118030.0,118020.0,0.09114]
[1752979925266,0.9747379,118030.0,118020.0,0.260511]
[1752979926467,0.9747379,118030.0,118020.0,0.09114]
[1752979928061,1.3355379,118030.0,118020.0,0.260511]
[1752979928265,0.9747379,118030.0,118020.0,0.09114]
[1752979928466,0.9747379,118030.0,118020.0,0.260511]
[1752979929966,0.9747379,118030.0,118020.0,0.09114]
[1752979931063,0.00483,118060.0,118040.0,0.0764925]
[1752979931266,0.01591,118060.0,118050.0,0.8731171]
[1752979931464,0.41863498,118070.0,118060.0,0.2034736]
[1752979931665,0.07431733,118070.0,118060.0,0.8731027]
[1752979931863,0.80540663,118070.0,118060.0,0.8731027]
[1752979932260,0.44387175,118080.0,118070.0,0.2034593]
[1752979932467,0.1851949,118080.0,118070.0,1.12523885]
[1752979932766,0.7705149,118080.0,118070.0,0.74523885]
[1752979933061,0.7704749,118080.0,118070.0,0.7878269]
[1752979933467,0.7704349,118080.0,118070.0,0.7878269]
[1752979933769,0.7704349,118080.0,118070.0,0.6173893]
[1752979935367,0.7704349,118080.0,118070.0,0.7878269]
[1752979935574,0.7704349,118080.0,118070.0,1.0978269]
[1752979936275,0.1692849,118080.0,118070.0,1.0978269]
[1752979936474,0.7545249,118080.0,118070.0,1.16531181]
[1752979936678,0.7545249,118080.0,118070.0,1.21531181]
[1752979937164,0.7545249,118080.0,118070.0,1.04487421]
[1752979937472,0.7545249,118080.0,118070.0,1.21531181]
[1752979938170,0.7575249,118080.0,118070.0,1.21531181]
[1752979938975,0.1722849,118080.0,118070.0,1.21531181]
[1752979939178,0.7575649,118080.0,118070.0,1.21531181]
[1752979939669,0.7575649,118080.0,118070.0,1.22410203]
[1752979940673,0.58828,118080.0,118070.0,1.22410203]
[1752979942572,0.7575649,118080.0,118070.0,1.22410203]
[1752979942978,0.7575649,118080.0,118070.0,0.95410203]
[1752979943879,0.7575649,118080.0,118070.0,0.86410203]
[1752979945071,0.7736249,118080.0,118070.0,0.86410203]
[1752979946072,0.7910049,118080.0,118070.0,0.86410203]
[1752979946583,1.0035625,118080.0,118070.0,0.16356513]
[1752979946879,1.0035625,118080.0,118070.0,0.05701022]
[1752979947475,1.0035625,118080.0,118070.0,0.04822]
[1752979947783,1.3643625,118080.0,118070.0,0.04822]
[1752979947978,1.3643625,118080.0,118070.0,0.02485]
[1752979948578,1.3643625,118080.0,118070.0,0.0335752]
[1752979949282,1.3643625,118080.0,118070.0,0.02485]
[1752979949482,1.38257367,118080.0,118070.0,0.02485]
[1752979951878,1.38257367,118080.0,118070.0,0.04912]
[1752979954884,1.38257367,118080.0,118070.0,0.02485]
[1752979957884,1.38257367,118080.0,118060.0,0.0086195]
[1752979958082,0.2260736,118060.0,118050.0,0.05868537]
[1752979958288,0.99904237,118060.0,118050.0,0.08161537]
[1752979958588,0.99904237,118060.0,118050.0,0.09037706]
[1752979958589,0.99489237,118060.0,118050.0,0.09037706]
[1752979959290,1.35569237,118060.0,118050.0,0.09037706]
[1752979959488,1.3374812,118060.0,118050.0,0.09037706]
[1752979959687,1.3416312,118060.0,118050.0,0.25970506]
[1752979959988,1.40789057,118060.0,118050.0,0.28407506]
[1752979960489,1.42588785,118060.0,118050.0,0.28407506]
[1752979960888,1.42588785,118060.0,118050.0,0.11474706]
[1752979961594,1.42788785,118060.0,118050.0,0.11474706]
[1752979962886,1.42784785,118060.0,118050.0,0.11474706]
[1752979963089,1.42584785,118060.0,118050.0,0.11474706]
[1752979963388,1.42884785,118060.0,118050.0,0.11474706]
[1752979963886,1.42984785,118060.0,118050.0,0.11474706]
[1752979964892,1.42984909,118060.0,118050.0,0.11474706]
[1752979966193,1.42968909,118060.0,118050.0,0.11474706]
[1752979967292,0.84556909,118060.0,118050.0,0.28407506]
[1752979967493,1.42956909,118060.0,118050.0,0.28407506]
[1752979968593,1.25913149,118060.0,118050.0,0.28407506]
[1752979968792,1.42956909,118060.0,118050.0,0.28407506]
[1752979968992,1.42956909,118060.0,118050.0,0.11474706]
[1752979972689,1.42956909,118060.0,118050.0,0.28407496]
[1752979972996,1.42956909,118060.0,118050.0,0.11474706]
[1752979974192,1.42956909,118060.0,118050.0,0.28407496]
[1752979981493,0.77930972,118060.0,118050.0,0.28407496]
[1752979981795,0.79017212,118060.0,118050.0,0.81531256]
[1752979982194,0.20956212,118060.0,118050.0,0.81531256]
[1752979982398,0.79017212,118060.0,118050.0,0.81531256]
[1752979982989,0.79017212,118060.0,118050.0,1.14531256]
[1752979982990,0.003,118060.0,118050.0,1.14531256]
[1752979983195,0.1723136,118060.0,118050.0,1.31472856]
[1752979983589,0.1723136,118060.0,118050.0,1.31572856]
[1752979983590,0.1693136,118060.0,118050.0,1.31572856]
[1752979983896,0.1713136,118060.0,118050.0,1.31572856]